Workbook

Sheet Sheet1
B2: TEKİL & YAYILI YÜKLÜ ÇELİK BASİT KİRİŞ SEHİM HESABI (6 adet tekil yüklü) (inş.müh. Gürcan BERBEROĞLU tel:0532 366 02 04 www.betoncelik.com ) | CF2: Not: Kirişin eğilme dayanımı hesapları için "celik2016_tali_kiris_hesapları" excel dosyasında "profil_kiris_hesabi" sayfasını kullanabilirsiniz.
S3: Dikkat sadece sarı hücrelere data girilecek.
BD4: Not : sehim hesabında (G + Q) yük terimleri kullanılmalı. | CG4: çeşitli I profiller
O5: IPE 600 | Z5: 20 | AB5: KN | AE5: 20 | AG5: KN | AJ5: 20 | AL5: KN | AO5: 20 | AQ5: KN | AT5: 20 | AV5: KN | AY5: 20 | BA5: KN | CG5: profil | CH5: A(cm²) | CI5: h (mm.) | CJ5: b (mm.) | CK5: s (mm.) | CL5: t (mm.) | CM5: Jx (cm4.)
AL6: 13 | AN6: KN/m | BI6: eğilme ve kesme tasarımında kullanılacak değerler | CF6: normal I profiller | CG6: normal I 80 | CH6: 7.57 | CI6: 80 | CJ6: 42 | CK6: 3.9 | CL6: 5.9 | CM6: 77.8
BI7: Cb = | BK7: =+AK41 -> 1.156948813 | CG7: normal I 100 | CH7: 10.6 | CI7: 100 | CJ7: 50 | CK7: 4.5 | CL7: 6.8 | CM7: 171
BI8: Max = | BK8: =+BV33 -> 424.9615385 | BN8: KNm | BP8: (max moment) | CG8: normal I 120 | CH8: 14.2 | CI8: 120 | CJ8: 58 | CK8: 5.1 | CL8: 7.7 | CM8: 328
C9: =INDEX($CI$6:$CI$120,MATCH(O5,$CG$6:$CG$120,0),0) -> 600 | BI9: Vmax = | BL9: =MAX(U12,BD12) -> 143 | BO9: KN | BQ9: (max kesme kuvveti) | CG9: normal I 140 | CH9: 18.2 | CI9: 140 | CJ9: 66 | CK9: 5.7 | CL9: 8.6 | CM9: 573
Y10: x | CG10: normal I 160 | CH10: 22.8 | CI10: 160 | CJ10: 74 | CK10: 6.3 | CL10: 9.5 | CM10: 935
J11: =INDEX($CK$6:$CK$120,MATCH(O5,$CG$6:$CG$120,0),0) -> 12 | CG11: normal I 180 | CH11: 27.9 | CI11: 180 | CJ11: 82 | CK11: 6.9 | CL11: 10.4 | CM11: 1450
T12: A= | U12: =+E22 -> 133 | W12: KN | BC12: B= | BD12: =+E25 -> 143 | BF12: KN | CG12: normal I 200 | CH12: 33.4 | CI12: 200 | CJ12: 90 | CK12: 7.5 | CL12: 11.3 | CM12: 2140
W13: 1.5 | Y13: m | Z13: m | AB13: 2.5 | AD13: m | AG13: 1.5 | AI13: m | AL13: 1 | AN13: m | AQ13: 3.5 | AS13: m | AV13: 1.5 | AX13: m | BA13: 0.5 | BC13: m | CG13: normal I 220 | CH13: 39.5 | CI13: 220 | CJ13: 98 | CK13: 8.1 | CL13: 12.2 | CM13: 3060
K14: =INDEX($CL$6:$CL$120,MATCH(O5,$CG$6:$CG$120,0),0) -> 19 | CG14: normal I 240 | CH14: 46.1 | CI14: 240 | CJ14: 106 | CK14: 8.7 | CL14: 13.1 | CM14: 4250
AK15: L= | AL15: =+W13+AB13+AG13+AL13+AQ13+AV13+BA13 -> 12 | AN15: m | CG15: normal I 260 | CH15: 53.3 | CI15: 260 | CJ15: 113 | CK15: 9.4 | CL15: 14.1 | CM15: 5740
BG16: Çelik yönetmelik madde 9.1.(c) uyarınca | CG16: normal I 280 | CH16: 61 | CI16: 280 | CJ16: 119 | CK16: 10.1 | CL16: 15.2 | CM16: 7590
I17: =INDEX($CJ$6:$CJ$120,MATCH(O5,$CG$6:$CG$120,0),0) -> 220 | X17: Ix = | Z17: =INDEX($CM$6:$CM$120,MATCH(O5,$CG$6:$CG$120,0),0) -> 92080 | AD17: cm4 | AG17: (kiriş atalet momenti) | BG17: ( MA = L / 4 mesafedeki gerekli eğilme momentinin mutlak değeri ) | CG17: normal I 300 | CH17: 69 | CI17: 300 | CJ17: 125 | CK17: 10.8 | CL17: 16.2 | CM17: 9800
X18: E = | Z18: 200000 | AD18: N/mm² | AG18: (kiriş elastisite modülü) | BG18: ( MB = L / 2 mesafedeki gerekli eğilme momentinin mutlak değeri ) | CG18: normal I 320 | CH18: 77.7 | CI18: 320 | CJ18: 131 | CK18: 11.5 | CL18: 17.3 | CM18: 12510
C19: MESNET TEPKİLERİ | BG19: ( MC = 3 * L / 4 mesafedeki gerekli eğilme momentinin mutlak değeri ) | CG19: normal I 340 | CH19: 86.7 | CI19: 340 | CJ19: 137 | CK19: 12.2 | CL19: 18.3 | CM19: 15700
C20: MB = 0 (sağ mesnette moment sıfır şartından) | CG20: normal I 360 | CH20: 97 | CI20: 360 | CJ20: 143 | CK20: 13 | CL20: 19.5 | CM20: 19610
C21: A | D21: * | E21: =+AL15 -> 12 | G21: - | H21: =+Z5 -> 20 | J21: * | K21: =+AB13+AG13+AL13+AQ13+AV13+BA13 -> 10.5 | M21: - | N21: =+AE5 -> 20 | P21: * | Q21: =+AG13+AL13+AQ13+AV13+BA13 -> 8 | S21: - | T21: =+AJ5 -> 20 | V21: * | W21: =+AL13+AQ13+AV13+BA13 -> 6.5 | Y21: - | Z21: =+AO5 -> 20 | AB21: * | AC21: =+AQ13+AV13+BA13 -> 5.5 | AE21: - | AF21: =+AT5 -> 20 | AH21: * | AI21: =+AV13+BA13 -> 2 | AK21: - | AL21: =+AY5 -> 20 | AN21: * | AO21: =+BA13 -> 0.5 | AQ21: - | AR21: =+AL6 -> 13 | AT21: * | AU21: =+AL15 -> 12 | AW21: * | AX21: =+AL15/2 -> 6 | AZ21: = | BA21: 0 | CG21: normal I 380 | CH21: 107 | CI21: 380 | CJ21: 149 | CK21: 13.7 | CL21: 20.5 | CM21: 24010
C22: A = | E22: =(H21*K21+N21*Q21+T21*W21+Z21*AC21+AF21*AI21+AL21*AO21+AR21*AU21*AX21)/E21 -> 133 | G22: KN | I22: (sol mesnet tepkisi) | CG22: normal I 400 | CH22: 118 | CI22: 400 | CJ22: 155 | CK22: 14.4 | CL22: 21.6 | CM22: 29210
C23: Fy = 0 (düşey denge denklemi yazılırsa) | CG23: normal I 425 | CH23: 132 | CI23: 425 | CJ23: 163 | CK23: 15.3 | CL23: 23 | CM23: 36970
C24: A | D24: + | E24: B | F24: - | G24: =+Z5 -> 20 | I24: - | J24: =+AE5 -> 20 | L24: - | M24: =+AJ5 -> 20 | O24: * | P24: =+AO5 -> 20 | R24: - | S24: =+AT5 -> 20 | U24: - | V24: =+AY5 -> 20 | X24: - | Y24: =+AL6 -> 13 | AA24: * | AB24: =+AL15 -> 12 | AD24: = | AE24: 0 | CG24: normal I 450 | CH24: 147 | CI24: 450 | CJ24: 170 | CK24: 16.2 | CL24: 24.3 | CM24: 45850
C25: B = | E25: =(G24+J24+M24+P24+S24+V24+Y24*AB24-E22) -> 143 | G25: KN | I25: (sağ mesnet tepkisi) | CG25: normal I 475 | CH25: 163 | CI25: 475 | CJ25: 178 | CK25: 17.1 | CL25: 25.6 | CM25: 46480
C26: ARA KESİT TESİRLERİ | CG26: normal I 500 | CH26: 179 | CI26: 500 | CJ26: 185 | CK26: 18 | CL26: 27 | CM26: 68740
C27: Mx = | E27: =+U12 -> 133 | G27: * x - | I27: =+Z5 -> 20 | K27: *( x - | M27: =+W13 -> 1.5 | O27: )- | P27: =+AE5 -> 20 | R27: *( x - | T27: =+W13+AB13 -> 4 | V27: )- | W27: =+AJ5 -> 20 | Y27: *( x - | AA27: =+W13+AB13+AG13 -> 5.5 | AC27: )- | AD27: =+AO5 -> 20 | AF27: *( x - | AH27: =+W13+AB13+AG13+AL13 -> 6.5 | AJ27: )- | AK27: =+AT5 -> 20 | AM27: *( x - | AO27: =+W13+AB13+AG13+AL13+AQ13 -> 10 | AQ27: )- | AR27: =+AY5 -> 20 | AT27: *( x - | AV27: =+W13+AB13+AG13+AL13+AQ13+AV13 -> 11.5 | AX27: )- | AY27: =+AL6 -> 13 | BA27: * | BB27: x² | BC27: / | BD27: 2 | CG27: normal I 550 | CH27: 212 | CI27: 550 | CJ27: 200 | CK27: 19 | CL27: 30 | CM27: 99180
C28: x= | D28: =+AL15/2 -> 6 | G28: m. ' deki moment ve kesme kuvveti miktarı | U28: =IF(D28<=AL15,"","azalt.") ->  | CG28: normal I 600 | CH28: 254 | CI28: 600 | CJ28: 215 | CK28: 21.6 | CL28: 32.4 | CM28: 139000
C29: Mx = | E29: =+E27 -> 133 | G29: * | H29: =+D28 -> 6 | J29: - | K29: =IF((N29-Q29)<=0,0,+I27) -> 20 | M29: *( | N29: =+H29 -> 6 | P29: - | Q29: =+M27 -> 1.5 | S29: )- | T29: =IF((W29-Z29)<=0,0,+P27) -> 20 | V29: *( | W29: =+N29 -> 6 | Y29: - | Z29: =+T27 -> 4 | AB29: )- | AC29: =IF((AF29-AI29)<=0,0,+W27) -> 20 | AE29: *( | AF29: =+W29 -> 6 | AH29: - | AI29: =+AA27 -> 5.5 | AK29: )- | AL29: =IF((AO29-AR29)<=0,0,+AD27) -> 0 | AN29: *( | AO29: =+AF29 -> 6 | AQ29: - | AR29: =+AH27 -> 6.5 | AT29: )- | AU29: =IF((AX29-BA29)<=0,0,+AK27) -> 0 | AW29: *( | AX29: =+AO29 -> 6 | AZ29: - | BA29: =+AO27 -> 10 | BC29: )- | BD29: =IF((BG29-BJ29)<=0,0,+AR27) -> 0 | BF29: *( | BG29: =+AX29 -> 6 | BI29: - | BJ29: =+AV27 -> 11.5 | BL29: )- | BM29: =+AY27 -> 13 | BO29: * | BP29: =+BG29 -> 6 | BR29: ²/ | BS29: 2 | BT29: = | BU29: =E29*H29-K29*(N29-Q29)-T29*(W29-Z29)-AC29*(AF29-AI29)-AL29*(AO29-AR29)-AU29*(AX29-BA29)-BD29*(BG29-BJ29)-BM29*BP29^2/BS29 -> 424 | BX29: KNm | CF29: IPE profiller | CG29: IPE 80 | CH29: 7.64 | CI29: 80 | CJ29: 46 | CK29: 3.8 | CL29: 5.2 | CM29: 80.1
C30: Vx = | E30: =+E29 -> 133 | G30: - | H30: =+K29 -> 20 | J30: - | K30: =+T29 -> 20 | M30: - | N30: =+AC29 -> 20 | P30: - | Q30: =+AL29 -> 0 | S30: - | T30: =+AU29 -> 0 | V30: - | W30: =+BD29 -> 0 | Y30: - | Z30: =+BM29 -> 13 | AB30: * | AC30: =+BP29 -> 6 | AE30: = | AF30: =+E30-H30-K30-N30-Q30-T30-W30-Z30*AC30 -> -5 | AI30: KN | CG30: IPE 100 | CH30: 10.3 | CI30: 100 | CJ30: 55 | CK30: 4.1 | CL30: 5.7 | CM30: 171
C31: EĞİLME HESABINDA KULLANILMAK ÜZERE Cb KATSAYISI İÇİN ( Mmax ; MA ; MB ; MC ) HESABI (Çelik yönetmelik madde 9.1.(c) uyarınca) | CG31: IPE 120 | CH31: 13.2 | CI31: 120 | CJ31: 64 | CK31: 4.4 | CL31: 6.3 | CM31: 318
C32: x= | D32: =(E30-H30-K30-N30-Q30-T30-W30)/Z30 -> 5.615384615 | G32: m. ' deki max moment miktarı | CG32: IPE 140 | CH32: 16.4 | CI32: 140 | CJ32: 73 | CK32: 4.7 | CL32: 6.9 | CM32: 541
C33: Mmax = | F33: =+E27 -> 133 | H33: * | I33: =+D32 -> 5.615384615 | K33: - | L33: =IF((O33-R33)<=0,0,+I27) -> 20 | N33: *( | O33: =+I33 -> 5.615384615 | Q33: - | R33: =+M27 -> 1.5 | T33: )- | U33: =IF((X33-AA33)<=0,0,+P27) -> 20 | W33: *( | X33: =+O33 -> 5.615384615 | Z33: - | AA33: =+T27 -> 4 | AC33: )- | AD33: =IF((AG33-AJ33)<=0,0,+W27) -> 20 | AF33: *( | AG33: =+X33 -> 5.615384615 | AI33: - | AJ33: =+AA27 -> 5.5 | AL33: )- | AM33: =IF((AP33-AS33)<=0,0,+AD27) -> 0 | AO33: *( | AP33: =+AG33 -> 5.615384615 | AR33: - | AS33: =+AH27 -> 6.5 | AU33: )- | AV33: =IF((AY33-BB33)<=0,0,+AK27) -> 0 | AX33: *( | AY33: =+AP33 -> 5.615384615 | BA33: - | BB33: =+AO27 -> 10 | BD33: )- | BE33: =IF((BH33-BK33)<=0,0,+AR27) -> 0 | BG33: *( | BH33: =+AY33 -> 5.615384615 | BJ33: - | BK33: =+AV27 -> 11.5 | BM33: )- | BN33: =+AY27 -> 13 | BP33: * | BQ33: =+BH33 -> 5.615384615 | BS33: ²/ | BT33: 2 | BU33: = | BV33: =F33*I33-L33*(O33-R33)-U33*(X33-AA33)-AD33*(AG33-AJ33)-AM33*(AP33-AS33)-AV33*(AY33-BB33)-BE33*(BH33-BK33)-BN33*BQ33^2/BT33 -> 424.9615385 | BY33: KNm | CG33: IPE 160 | CH33: 20.1 | CI33: 160 | CJ33: 82 | CK33: 5 | CL33: 7.4 | CM33: 869
C34: L / 2 = | E34: =+AL15/2 -> 6 | H34: m. ' deki moment miktarı | CG34: IPE 180 | CH34: 23.9 | CI34: 180 | CJ34: 91 | CK34: 5.3 | CL34: 8 | CM34: 1320
C35: MB = | E35: =+E29 -> 133 | G35: * | H35: =+E34 -> 6 | J35: - | K35: =IF((N35-Q35)<=0,0,+I27) -> 20 | M35: *( | N35: =+H35 -> 6 | P35: - | Q35: =+M27 -> 1.5 | S35: )- | T35: =IF((W35-Z35)<=0,0,+P27) -> 20 | V35: *( | W35: =+N35 -> 6 | Y35: - | Z35: =+T27 -> 4 | AB35: )- | AC35: =IF((AF35-AI35)<=0,0,+W27) -> 20 | AE35: *( | AF35: =+W35 -> 6 | AH35: - | AI35: =+AA27 -> 5.5 | AK35: )- | AL35: =IF((AO35-AR35)<=0,0,+AD27) -> 0 | AN35: *( | AO35: =+AF35 -> 6 | AQ35: - | AR35: =+AH27 -> 6.5 | AT35: )- | AU35: =IF((AX35-BA35)<=0,0,+AK27) -> 0 | AW35: *( | AX35: =+AO35 -> 6 | AZ35: - | BA35: =+AO27 -> 10 | BC35: )- | BD35: =IF((BG35-BJ35)<=0,0,+AR27) -> 0 | BF35: *( | BG35: =+AX35 -> 6 | BI35: - | BJ35: =+AV27 -> 11.5 | BL35: )- | BM35: =+AY27 -> 13 | BO35: * | BP35: =+BG35 -> 6 | BR35: ²/ | BS35: 2 | BT35: = | BU35: =E35*H35-K35*(N35-Q35)-T35*(W35-Z35)-AC35*(AF35-AI35)-AL35*(AO35-AR35)-AU35*(AX35-BA35)-BD35*(BG35-BJ35)-BM35*BP35^2/BS35 -> 424 | BX35: KNm | CG35: IPE 200 | CH35: 28.5 | CI35: 200 | CJ35: 100 | CK35: 5.6 | CL35: 8.5 | CM35: 1940
C36: L / 4 = | E36: =+AL15/4 -> 3 | H36: m. ' deki moment miktarı | CG36: IPE 220 | CH36: 33.4 | CI36: 220 | CJ36: 110 | CK36: 5.9 | CL36: 9.2 | CM36: 2770
C37: MA = | E37: =+E35 -> 133 | G37: * | H37: =+E36 -> 3 | J37: - | K37: =IF((N37-Q37)<=0,0,+I27) -> 20 | M37: *( | N37: =+H37 -> 3 | P37: - | Q37: =+Q35 -> 1.5 | S37: )- | T37: =IF((W37-Z37)<=0,0,+P27) -> 0 | V37: *( | W37: =+N37 -> 3 | Y37: - | Z37: =+Z35 -> 4 | AB37: )- | AC37: =IF((AF37-AI37)<=0,0,+W27) -> 0 | AE37: *( | AF37: =+W37 -> 3 | AH37: - | AI37: =+AI35 -> 5.5 | AK37: )- | AL37: =IF((AO37-AR37)<=0,0,+AD27) -> 0 | AN37: *( | AO37: =+AF37 -> 3 | AQ37: - | AR37: =+AR35 -> 6.5 | AT37: )- | AU37: =IF((AX37-BA37)<=0,0,+AK27) -> 0 | AW37: *( | AX37: =+AO37 -> 3 | AZ37: - | BA37: =+BA35 -> 10 | BC37: )- | BD37: =IF((BG37-BJ37)<=0,0,+AR27) -> 0 | BF37: *( | BG37: =+AX37 -> 3 | BI37: - | BJ37: =+BJ35 -> 11.5 | BL37: )- | BM37: =+BM35 -> 13 | BO37: * | BP37: =+BG37 -> 3 | BR37: ²/ | BS37: 2 | BT37: = | BU37: =E37*H37-K37*(N37-Q37)-T37*(W37-Z37)-AC37*(AF37-AI37)-AL37*(AO37-AR37)-AU37*(AX37-BA37)-BD37*(BG37-BJ37)-BM37*BP37^2/BS37 -> 310.5 | BX37: KNm | CG37: IPE 240 | CH37: 39.1 | CI37: 240 | CJ37: 120 | CK37: 6.2 | CL37: 9.8 | CM37: 3890
C38: 3 * L / 4 = | F38: =3*AL15/4 -> 9 | I38: m. ' deki moment miktarı | CG38: IPE 270 | CH38: 45.9 | CI38: 270 | CJ38: 135 | CK38: 6.6 | CL38: 10.2 | CM38: 5790
C39: MC = | F39: =+E37 -> 133 | H39: * | I39: =+F38 -> 9 | K39: - | L39: =IF((O39-R39)<=0,0,+I27) -> 20 | N39: *( | O39: =+I39 -> 9 | Q39: - | R39: =+Q37 -> 1.5 | T39: )- | U39: =IF((X39-AA39)<=0,0,+P27) -> 20 | W39: *( | X39: =+O39 -> 9 | Z39: - | AA39: =+Z37 -> 4 | AC39: )- | AD39: =IF((AG39-AJ39)<=0,0,+W27) -> 20 | AF39: *( | AG39: =+X39 -> 9 | AI39: - | AJ39: =+AI37 -> 5.5 | AL39: )- | AM39: =IF((AP39-AS39)<=0,0,+AD27) -> 20 | AO39: *( | AP39: =+AG39 -> 9 | AR39: - | AS39: =+AR37 -> 6.5 | AU39: )- | AV39: =IF((AY39-BB39)<=0,0,+AK27) -> 0 | AX39: *( | AY39: =+AP39 -> 9 | BA39: - | BB39: =+BA37 -> 10 | BD39: )- | BE39: =IF((BH39-BK39)<=0,0,+AR27) -> 0 | BG39: *( | BH39: =+AY39 -> 9 | BJ39: - | BK39: =+BJ37 -> 11.5 | BM39: )- | BN39: =+BM37 -> 13 | BP39: * | BQ39: =+BH39 -> 9 | BS39: ²/ | BT39: 2 | BU39: = | BV39: =F39*I39-L39*(O39-R39)-U39*(X39-AA39)-AD39*(AG39-AJ39)-AM39*(AP39-AS39)-AV39*(AY39-BB39)-BE39*(BH39-BK39)-BN39*BQ39^2/BT39 -> 300.5 | BY39: KNm | CG39: IPE 300 | CH39: 53.8 | CI39: 300 | CJ39: 150 | CK39: 7.1 | CL39: 10.7 | CM39: 8360
C40: Cb = 12,5 * Mmax / ( 2,5 * Mmax + 3 * MA + 4 * MB + 3 * MC ) | CG40: IPE 330 | CH40: 62.6 | CI40: 330 | CJ40: 160 | CK40: 7.5 | CL40: 11.5 | CM40: 11770
C41: Cb = | E41: 12.5 | G41: * | H41: =ABS(BV33) -> 424.9615385 | K41: /( | L41: 2.5 | N41: * | O41: =+H41 -> 424.9615385 | R41: + | S41: 3 | T41: * | U41: =ABS(BU37) -> 310.5 | X41: + | Y41: 4 | Z41: * | AA41: =ABS(BU35) -> 424 | AD41: + | AE41: 3 | AF41: * | AG41: =ABS(BV39) -> 300.5 | AJ41: )= | AK41: =E41*H41/(L41*O41+S41*U41+Y41*AA41+AE41*AG41) -> 1.156948813 | CG41: IPE 360 | CH41: 72.7 | CI41: 360 | CJ41: 170 | CK41: 8 | CL41: 12.7 | CM41: 16270
C42: SEHİM HESABI | CG42: IPE 400 | CH42: 84.5 | CI42: 400 | CJ42: 180 | CK42: 8.6 | CL42: 13.5 | CM42: 23130
C43: E * I / 108 dy / dx = | I43: =+E27 -> 133 | K43: * x² / | M43: 2 | N43: - | O43: =+I27 -> 20 | Q43: *( x - | S43: =+M27 -> 1.5 | U43: )² / 2 - | W43: =+P27 -> 20 | Y43: *( x - | AA43: =+T27 -> 4 | AC43: )² / 2 - | AE43: =+W27 -> 20 | AG43: *( x - | AI43: =+AA27 -> 5.5 | AK43: )² / 2 - | AM43: =+AD27 -> 20 | AO43: *( x - | AQ43: =+AH27 -> 6.5 | AS43: )² / 2 - | AU43: =+AK27 -> 20 | AW43: *( x - | AY43: =+AO27 -> 10 | BA43: )² / 2 - | BC43: =+AR27 -> 20 | BE43: *( x - | BG43: =+AV27 -> 11.5 | BI43: )² / 2 | BK43: - | BL43: =+AY27 -> 13 | BN43: * | BO43: x3 | BP43: / | BQ43: 6 | BR43: + | BS43: C1 | BV43: (integral) | CG43: IPE 450 | CH43: 98.8 | CI43: 450 | CJ43: 190 | CK43: 9.4 | CL43: 14.6 | CM43: 33740
C44: E * I / 108 * y = | H44: =+I43 -> 133 | J44: * x3 / | L44: 6 | M44: - | N44: =+O43 -> 20 | P44: *( x - | R44: =+S43 -> 1.5 | T44: )3 / 6 - | V44: =+W43 -> 20 | X44: *( x - | Z44: =+AA43 -> 4 | AB44: )3 / 6 - | AD44: =+AE43 -> 20 | AF44: *( x - | AH44: =+AI43 -> 5.5 | AJ44: )3 / 6 - | AL44: =+AM43 -> 20 | AN44: *( x - | AP44: =+AQ43 -> 6.5 | AR44: )3 / 6 - | AT44: =+AU43 -> 20 | AV44: *( x - | AX44: =+AY43 -> 10 | AZ44: )3 / 6 - | BB44: =+BC43 -> 20 | BD44: *( x - | BF44: =+BG43 -> 11.5 | BH44: )3 / 6 | BJ44: - | BK44: =+BL43 -> 13 | BM44: * | BN44: x4 | BO44: / | BP44: 24 | BR44: + C1 * x + C2 | BX44: (integral) | CG44: IPE 500 | CH44: 116 | CI44: 500 | CJ44: 200 | CK44: 10.2 | CL44: 16 | CM44: 48200
C45: x = 0 ; y = 0 ; C2 = 0 | CG45: IPE 550 | CH45: 134 | CI45: 550 | CJ45: 210 | CK45: 11.1 | CL45: 17.2 | CM45: 67120
C46: x= | D46: =+AL15 -> 12 | F46: m | G46: ; | H46: y = 0 | CG46: IPE 600 | CH46: 156 | CI46: 600 | CJ46: 220 | CK46: 12 | CL46: 19 | CM46: 92080
C47: =+H44 -> 133 | E47: * | F47: =+D46 -> 12 | H47: 3/ | I47: 6 | J47: - | K47: =+N44 -> 20 | M47: *( | N47: =+D46 -> 12 | P47: - | Q47: =+R44 -> 1.5 | S47: )3/ | T47: 6 | U47: - | V47: =+V44 -> 20 | X47: *( | Y47: =+N47 -> 12 | AA47: - | AB47: =+Z44 -> 4 | AD47: )3/ | AE47: 6 | AF47: - | AG47: =+AD44 -> 20 | AI47: *( | AJ47: =+Y47 -> 12 | AL47: - | AM47: =+AH44 -> 5.5 | AO47: )3/ | AP47: 6 | AQ47: - | AR47: =+AL44 -> 20 | AT47: *( | AU47: =+AJ47 -> 12 | AW47: - | AX47: =+AP44 -> 6.5 | AZ47: )3/ | BA47: 6 | BB47: - | BC47: =+AT44 -> 20 | BE47: *( | BF47: =+AU47 -> 12 | BH47: - | BI47: =+AX44 -> 10 | BK47: )3/ | BL47: 6 | BM47: - | CF47: IPBL (HE-A) profiller | CG47: IPBL (HE-A) 100 | CH47: 21.2 | CI47: 96 | CJ47: 100 | CK47: 5 | CL47: 8 | CM47: 349
D48: - | E48: =+BB44 -> 20 | G48: *( | H48: =+BF47 -> 12 | J48: - | K48: =+BF44 -> 11.5 | M48: )3/ | N48: 6 | O48: - | P48: =+BK44 -> 13 | R48: * | S48: =+H48 -> 12 | U48: 4/ | V48: 24 | X48: + | Y48: =+BF47 -> 12 | AA48: * | AB48: C1 | AC48: = | AD48: 0 | CG48: IPBL (HE-A) 120 | CH48: 25.3 | CI48: 114 | CJ48: 120 | CK48: 5 | CL48: 8 | CM48: 606
C49: C1 = | E49: =-(C47*F47^3/I47-K47*(N47-Q47)^3/T47-V47*(Y47-AB47)^3/AE47-AG47*(AJ47-AM47)^3/AP47-AR47*(AU47-AX47)^3/BA47-BC47*(BF47-BI47)^3/BL47-E48*(H48-K48)^3/N48-P48*S48^4/V48)/Y48 -> -1667.458333 | CG49: IPBL (HE-A) 140 | CH49: 31.4 | CI49: 133 | CJ49: 140 | CK49: 5.5 | CL49: 8.5 | CM49: 1030
C50: E * I / 108 * y = | H50: =+H44 -> 133 | J50: * x3 / | L50: 6 | M50: - | N50: =+N44 -> 20 | P50: *( x - | R50: =+R44 -> 1.5 | T50: )3 / 6 - | V50: =+V44 -> 20 | X50: *( x - | Z50: =+Z44 -> 4 | AB50: )3 / 6 - | AD50: =+AD44 -> 20 | AF50: *( x - | AH50: =+AH44 -> 5.5 | AJ50: )3 / 6 - | AL50: =+AL44 -> 20 | AN50: *( x - | AP50: =+AP44 -> 6.5 | AR50: )3 / 6 - | AT50: =+AT44 -> 20 | AV50: *( x - | AX50: =+AX44 -> 10 | AZ50: )3 / 6 - | BB50: =+BB44 -> 20 | BD50: *( x - | BF50: =+BF44 -> 11.5 | BH50: )3 / 6 | BJ50: - | BK50: =+P48 -> 13 | BM50: * | BN50: x4 | BO50: / | BP50: 24 | BR50: + | BS50: =+E49 -> -1667.458333 | BV50: * | BW50: x | CG50: IPBL (HE-A) 160 | CH50: 38.8 | CI50: 152 | CJ50: 160 | CK50: 6 | CL50: 9 | CM50: 1670
C51: y = ( | E51: =+H50 -> 133 | G51: * x3 / | I51: 6 | J51: - | K51: =+N50 -> 20 | M51: *( x - | O51: =+R50 -> 1.5 | Q51: )3 / 6 - | S51: =+V50 -> 20 | U51: *( x - | W51: =+Z50 -> 4 | Y51: )3 / 6 - | AA51: =+AD50 -> 20 | AC51: *( x - | AE51: =+AH50 -> 5.5 | AG51: )3 / 6 - | AI51: =+AL50 -> 20 | AK51: *( x - | AM51: =+AP50 -> 6.5 | AO51: )3 / 6 - | AQ51: =+AT50 -> 20 | AS51: *( x - | AU51: =+AX50 -> 10 | AW51: )3 / 6 - | AY51: =+BB50 -> 20 | BA51: *( x - | BC51: =+BF50 -> 11.5 | BE51: )3 / 6 | BG51: - | BH51: =+BK50 -> 13 | BJ51: * | BK51: x4 | BL51: / | BM51: 24 | BO51: + | BP51: =+BS50 -> -1667.458333 | BS51: * | BT51: x ) * 108 / ( E * I ) | CG51: IPBL (HE-A) 180 | CH51: 45.3 | CI51: 171 | CJ51: 180 | CK51: 6 | CL51: 9.5 | CM51: 2510
C52: x= | D52: =+AL15/2 -> 6 | G52: m. ' deki sehim miktarı | P52: =IF(D52<=AL15,"","azalt.") ->  | CG52: IPBL (HE-A) 200 | CH52: 53.8 | CI52: 190 | CJ52: 200 | CK52: 6.5 | CL52: 10 | CM52: 3690
C53: y = ( | E53: =+E51 -> 133 | G53: * | H53: =+D52 -> 6 | J53: 3/ | K53: 6 | L53: - | M53: =IF((P53-S53)<=0,0,+K51) -> 20 | O53: *( | P53: =+D52 -> 6 | R53: - | S53: =+O51 -> 1.5 | U53: )3/ | V53: 6 | W53: - | X53: =IF((AA53-AD53)<=0,0,+S51) -> 20 | Z53: *( | AA53: =+P53 -> 6 | AC53: - | AD53: =+W51 -> 4 | AF53: )3/ | AG53: 6 | AH53: - | AI53: =IF((AL53-AO53)<=0,0,+AA51) -> 20 | AK53: *( | AL53: =+AA53 -> 6 | AN53: - | AO53: =+AE51 -> 5.5 | AQ53: )3/ | AR53: 6 | AS53: - | AT53: =IF((AW53-AZ53)<=0,0,+AI51) -> 0 | AV53: *( | AW53: =+AL53 -> 6 | AY53: - | AZ53: =+AM51 -> 6.5 | BB53: )3/ | BC53: 6 | BD53: - | BE53: =IF((BH53-BK53)<=0,0,+AQ51) -> 0 | BG53: *( | BH53: =+AW53 -> 6 | BJ53: - | BK53: =+AU51 -> 10 | BM53: )3/ | BN53: 6 | BO53: - | BP53: =IF((BS53-BV53)<=0,0,+AY51) -> 0 | BR53: *( | BS53: =+BH53 -> 6 | BU53: - | BV53: =+BC51 -> 11.5 | BX53: )3/ | BY53: 6 | BZ53: - | CG53: IPBL (HE-A) 220 | CH53: 64.3 | CI53: 210 | CJ53: 220 | CK53: 7 | CL53: 11 | CM53: 5410
D54: - | E54: =+BH51 -> 13 | G54: * | H54: =+BS53 -> 6 | J54: 4/ | K54: 24 | M54: + | N54: =+BP51 -> -1667.458333 | Q54: * | R54: =+BH53 -> 6 | T54: )* 108 / ( | W54: =+Z18 -> 200000 | Z54: * | AA54: =+Z17 -> 92080 | AD54: ) | CG54: IPBL (HE-A) 240 | CH54: 76.8 | CI54: 230 | CJ54: 240 | CK54: 7.5 | CL54: 12 | CM54: 7760
C55: y = | E55: =-(E53*H53^3/K53-M53*(P53-S53)^3/V53-X53*(AA53-AD53)^3/AG53-AI53*(AL53-AO53)^3/AR53-AT53*(AW53-AZ53)^3/BC53-BE53*(BH53-BK53)^3/BN53-BP53*(BS53-BV53)^3/BY53-E54*H54^4/K54+N54*R54)*100000000/(W54*AA54) -> 33.93561758 | H55: mm | CG55: IPBL (HE-A) 260 | CH55: 86.8 | CI55: 250 | CJ55: 260 | CK55: 7.5 | CL55: 12.5 | CM55: 10450
C56: ymax = L / 300 = | H56: =+AL15*1000 -> 12000 | K56: / | L56: 300 | N56: = | O56: =+H56/L56 -> 40 | R56: mm | U56: (izin verilebilir çelik kiriş max sehim miktarı) | CG56: IPBL (HE-A) 280 | CH56: 97.3 | CI56: 270 | CJ56: 280 | CK56: 8 | CL56: 13 | CM56: 13670
C57: y= | D57: =+E55 -> 33.93561758 | G57: mm | I57: =IF(D57<M57,"<",">") -> < | J57: ymax = | M57: =+O56 -> 40 | P57: mm | R57: =IF(D57<M57,"uygun.","uygun değil.") -> uygun. | CG57: IPBL (HE-A) 300 | CH57: 113 | CI57: 290 | CJ57: 300 | CK57: 8.5 | CL57: 14 | CM57: 18260
CG58: IPBL (HE-A) 320 | CH58: 124 | CI58: 310 | CJ58: 300 | CK58: 9 | CL58: 15.5 | CM58: 22930
CG59: IPBL (HE-A) 340 | CH59: 133 | CI59: 330 | CJ59: 300 | CK59: 9.5 | CL59: 16.5 | CM59: 27690
B60: TEKİL & YAYILI YÜKLÜ ÇELİK BASİT KİRİŞ SEHİM HESABI (5 adet tekil yüklü) (inş.müh. Gürcan BERBEROĞLU tel:0532 366 02 04 www.betoncelik.com ) | CG60: IPBL (HE-A) 360 | CH60: 143 | CI60: 350 | CJ60: 300 | CK60: 10 | CL60: 17.5 | CM60: 33090
S61: Dikkat sadece sarı hücrelere data girilecek. | CG61: IPBL (HE-A) 400 | CH61: 159 | CI61: 390 | CJ61: 300 | CK61: 11 | CL61: 19 | CM61: 45070
BA62: Not : sehim hesabında (G + Q) yük terimleri kullanılmalı. | CG62: IPBL (HE-A) 450 | CH62: 178 | CI62: 440 | CJ62: 300 | CK62: 11.5 | CL62: 21 | CM62: 63720
O63: IPE 600 | Z63: 20 | AB63: KN | AE63: 20 | AG63: KN | AJ63: 20 | AL63: KN | AO63: 20 | AQ63: KN | AT63: 20 | AV63: KN | CG63: IPBL (HE-A) 500 | CH63: 198 | CI63: 490 | CJ63: 300 | CK63: 12 | CL63: 23 | CM63: 86970
AL64: 20 | AN64: KN/m | CG64: IPBL (HE-A) 550 | CH64: 212 | CI64: 540 | CJ64: 300 | CK64: 12.5 | CL64: 24 | CM64: 111900
BE65: eğilme ve kesme tasarımında kullanılacak değerler | CG65: IPBL (HE-A) 600 | CH65: 226 | CI65: 590 | CJ65: 300 | CK65: 13 | CL65: 25 | CM65: 141200
BE66: Cb = | BG66: =+AK99 -> 1.137206428 | CG66: IPBL (HE-A) 650 | CH66: 242 | CI66: 640 | CJ66: 300 | CK66: 13.5 | CL66: 26 | CM66: 175200
C67: =INDEX($CI$6:$CI$120,MATCH(O63,$CG$6:$CG$120,0),0) -> 600 | BE67: Max = | BG67: =+BM91 -> 460 | BJ67: KNm | BL67: (max moment) | CG67: IPBL (HE-A) 700 | CH67: 260 | CI67: 690 | CJ67: 300 | CK67: 14.5 | CL67: 27 | CM67: 215300
Y68: x | BE68: Vmax = | BH68: =MAX(U70,AY70) -> 160 | BK68: KN | BM68: (max kesme kuvveti) | CG68: IPBL (HE-A) 800 | CH68: 286 | CI68: 790 | CJ68: 300 | CK68: 15 | CL68: 28 | CM68: 303400
D69: 0 | J69: =INDEX($CK$6:$CK$120,MATCH(O63,$CG$6:$CG$120,0),0) -> 12 | CG69: IPBL (HE-A) 900 | CH69: 321 | CI69: 890 | CJ69: 300 | CK69: 16 | CL69: 30 | CM69: 422100
T70: A= | U70: =+E80 -> 160 | W70: KN | AX70: B= | AY70: =+E83 -> 160 | BA70: KN | CG70: IPBL (HE-A) 1000 | CH70: 347 | CI70: 990 | CJ70: 300 | CK70: 16.5 | CL70: 31 | CM70: 553800
W71: 1.5 | Y71: m | AB71: 2.5 | AD71: m | AG71: 1.5 | AI71: m | AL71: 1.5 | AN71: m | AQ71: 2.5 | AS71: m | AV71: 1.5 | AX71: m | CF71: IPB (HE-B) profiller | CG71: IPB (HE-B) 100 | CH71: 26 | CI71: 100 | CJ71: 100 | CK71: 6 | CL71: 10 | CM71: 450
K72: =INDEX($CL$6:$CL$120,MATCH(O63,$CG$6:$CG$120,0),0) -> 19 | CG72: IPB (HE-B) 120 | CH72: 34 | CI72: 120 | CJ72: 120 | CK72: 6.5 | CL72: 11 | CM72: 864
AI73: L= | AJ73: =+W71+AB71+AG71+AL71+AQ71+AV71 -> 11 | AL73: m | BF73: Çelik yönetmelik madde 9.1.(c) uyarınca | CG73: IPB (HE-B) 140 | CH73: 43 | CI73: 140 | CJ73: 140 | CK73: 7 | CL73: 12 | CM73: 1510
BF74: ( MA = L / 4 mesafedeki gerekli eğilme momentinin mutlak değeri ) | CG74: IPB (HE-B) 160 | CH74: 54.3 | CI74: 160 | CJ74: 160 | CK74: 8 | CL74: 13 | CM74: 2490
I75: =INDEX($CJ$6:$CJ$120,MATCH(O63,$CG$6:$CG$120,0),0) -> 220 | X75: Ix = | Z75: =INDEX($CM$6:$CM$120,MATCH(O63,$CG$6:$CG$120,0),0) -> 92080 | AD75: cm4 | AG75: (kiriş atalet momenti) | BF75: ( MB = L / 2 mesafedeki gerekli eğilme momentinin mutlak değeri ) | CG75: IPB (HE-B) 180 | CH75: 65.3 | CI75: 180 | CJ75: 180 | CK75: 8.5 | CL75: 14 | CM75: 3830
X76: E = | Z76: 200000 | AD76: N/mm² | AG76: (kiriş elastisite modülü) | BF76: ( MC = 3 * L / 4 mesafedeki gerekli eğilme momentinin mutlak değeri ) | CG76: IPB (HE-B) 200 | CH76: 78.1 | CI76: 200 | CJ76: 200 | CK76: 9 | CL76: 15 | CM76: 5700
C77: MESNET TEPKİLERİ | CG77: IPB (HE-B) 220 | CH77: 91 | CI77: 220 | CJ77: 220 | CK77: 9.5 | CL77: 16 | CM77: 8090
C78: MB = 0 (sağ mesnette moment sıfır şartından) | CG78: IPB (HE-B) 240 | CH78: 106 | CI78: 240 | CJ78: 240 | CK78: 10 | CL78: 17 | CM78: 11260
C79: A | D79: * | E79: =+AJ73 -> 11 | G79: - | H79: =+Z63 -> 20 | J79: * | K79: =+AB71+AG71+AL71+AQ71+AV71 -> 9.5 | M79: - | N79: =+AE63 -> 20 | P79: * | Q79: =+AG71+AL71+AQ71+AV71 -> 7 | S79: - | T79: =+AJ63 -> 20 | V79: * | W79: =+AL71+AQ71+AV71 -> 5.5 | Y79: - | Z79: =+AO63 -> 20 | AB79: * | AC79: =+AQ71+AV71 -> 4 | AE79: - | AF79: =+AT63 -> 20 | AH79: * | AI79: =+AV71 -> 1.5 | AK79: - | AL79: =+AL64 -> 20 | AN79: * | AO79: =+AJ73 -> 11 | AQ79: * | AR79: =+AJ73/2 -> 5.5 | AT79: = | AU79: 0 | CG79: IPB (HE-B) 260 | CH79: 118 | CI79: 260 | CJ79: 260 | CK79: 10 | CL79: 17.5 | CM79: 14920
C80: A = | E80: =(H79*K79+N79*Q79+T79*W79+Z79*AC79+AF79*AI79+AL79*AO79*AR79)/E79 -> 160 | G80: KN | I80: (sol mesnet tepkisi) | CG80: IPB (HE-B) 280 | CH80: 131 | CI80: 280 | CJ80: 280 | CK80: 10.5 | CL80: 18 | CM80: 19270
C81: Fy = 0 (düşey denge denklemi yazılırsa) | CG81: IPB (HE-B) 300 | CH81: 149 | CI81: 300 | CJ81: 300 | CK81: 11 | CL81: 19 | CM81: 25170
C82: A | D82: + | E82: B | F82: - | G82: =+Z63 -> 20 | I82: - | J82: =+AE63 -> 20 | L82: - | M82: =+AJ63 -> 20 | O82: * | P82: =+AO63 -> 20 | R82: - | S82: =+AT63 -> 20 | U82: - | V82: =+AL64 -> 20 | X82: * | Y82: =+AJ73 -> 11 | AA82: = | AB82: 0 | CG82: IPB (HE-B) 320 | CH82: 161 | CI82: 320 | CJ82: 300 | CK82: 11.5 | CL82: 20.5 | CM82: 30820
C83: B = | E83: =(G82+J82+M82+P82+S82+V82*Y82-E80) -> 160 | G83: KN | I83: (sağ mesnet tepkisi) | CG83: IPB (HE-B) 340 | CH83: 171 | CI83: 340 | CJ83: 300 | CK83: 12 | CL83: 21.5 | CM83: 36660
C84: ARA KESİT TESİRLERİ | CG84: IPB (HE-B) 360 | CH84: 181 | CI84: 360 | CJ84: 300 | CK84: 12.5 | CL84: 22.5 | CM84: 43190
C85: Mx = | E85: =+U70 -> 160 | G85: * x - | I85: =+Z63 -> 20 | K85: *( x - | M85: =+W71 -> 1.5 | O85: )- | P85: =+AE63 -> 20 | R85: *( x - | T85: =+W71+AB71 -> 4 | V85: )- | W85: =+AJ63 -> 20 | Y85: *( x - | AA85: =+W71+AB71+AG71 -> 5.5 | AC85: )- | AD85: =+AO63 -> 20 | AF85: *( x - | AH85: =+W71+AB71+AG71+AL71 -> 7 | AJ85: )- | AK85: =+AT63 -> 20 | AM85: *( x - | AO85: =+W71+AB71+AG71+AL71+AQ71 -> 9.5 | AQ85: )- | AR85: =+AL64 -> 20 | AT85: * | AU85: x² | AV85: / | AW85: 2 | CG85: IPB (HE-B) 400 | CH85: 198 | CI85: 400 | CJ85: 300 | CK85: 13.5 | CL85: 24 | CM85: 57680
C86: x= | D86: =+AJ73/2 -> 5.5 | G86: m. ' deki moment ve kesme kuvveti miktarı | U86: =IF(D86<=AJ73,"","azalt.") ->  | CG86: IPB (HE-B) 450 | CH86: 218 | CI86: 450 | CJ86: 300 | CK86: 14 | CL86: 26 | CM86: 79890
C87: Mx = | E87: =+E85 -> 160 | G87: * | H87: =+D86 -> 5.5 | J87: - | K87: =IF((N87-Q87)<=0,0,+I85) -> 20 | M87: *( | N87: =+H87 -> 5.5 | P87: - | Q87: =+M85 -> 1.5 | S87: )- | T87: =IF((W87-Z87)<=0,0,+P85) -> 20 | V87: *( | W87: =+N87 -> 5.5 | Y87: - | Z87: =+T85 -> 4 | AB87: )- | AC87: =IF((AF87-AI87)<=0,0,+W85) -> 0 | AE87: *( | AF87: =+W87 -> 5.5 | AH87: - | AI87: =+AA85 -> 5.5 | AK87: )- | AL87: =IF((AO87-AR87)<=0,0,+AD85) -> 0 | AN87: *( | AO87: =+AF87 -> 5.5 | AQ87: - | AR87: =+AH85 -> 7 | AT87: )- | AU87: =IF((AX87-BA87)<=0,0,+AK85) -> 0 | AW87: *( | AX87: =+AO87 -> 5.5 | AZ87: - | BA87: =+AO85 -> 9.5 | BC87: )- | BD87: =+AR85 -> 20 | BF87: * | BG87: =+AX87 -> 5.5 | BI87: ²/ | BJ87: 2 | BK87: = | BL87: =E87*H87-K87*(N87-Q87)-T87*(W87-Z87)-AC87*(AF87-AI87)-AL87*(AO87-AR87)-AU87*(AX87-BA87)-BD87*BG87^2/BJ87 -> 467.5 | BO87: KNm | CG87: IPB (HE-B) 500 | CH87: 239 | CI87: 500 | CJ87: 300 | CK87: 14.5 | CL87: 28 | CM87: 107200
C88: Vx = | E88: =+E87 -> 160 | G88: - | H88: =+K87 -> 20 | J88: - | K88: =+T87 -> 20 | M88: - | N88: =+AC87 -> 0 | P88: - | Q88: =+AL87 -> 0 | S88: - | T88: =+AU87 -> 0 | V88: - | W88: =+BD87 -> 20 | Y88: * | Z88: =+BG87 -> 5.5 | AB88: = | AC88: =+E88-H88-K88-N88-Q88-T88-W88*Z88 -> 10 | AF88: KN | CG88: IPB (HE-B) 550 | CH88: 254 | CI88: 550 | CJ88: 300 | CK88: 15 | CL88: 29 | CM88: 136700
C89: EĞİLME HESABINDA KULLANILMAK ÜZERE Cb KATSAYISI İÇİN ( Mmax ; MA ; MB ; MC ) HESABI (Çelik yönetmelik madde 9.1.(c) uyarınca) | CG89: IPB (HE-B) 600 | CH89: 270 | CI89: 600 | CJ89: 300 | CK89: 15.5 | CL89: 30 | CM89: 171000
C90: x= | D90: =(E88-H88-K88-N88-Q88-T88)/W88 -> 6 | G90: m. ' deki max moment miktarı | CG90: IPB (HE-B) 650 | CH90: 286 | CI90: 650 | CJ90: 300 | CK90: 16 | CL90: 31 | CM90: 210600
C91: Mmax = | F91: =+E85 -> 160 | H91: * | I91: =+D90 -> 6 | K91: - | L91: =IF((O91-R91)<=0,0,+I85) -> 20 | N91: *( | O91: =+I91 -> 6 | Q91: - | R91: =+M85 -> 1.5 | T91: )- | U91: =IF((X91-AA91)<=0,0,+P85) -> 20 | W91: *( | X91: =+O91 -> 6 | Z91: - | AA91: =+T85 -> 4 | AC91: )- | AD91: =IF((AG91-AJ91)<=0,0,+W85) -> 20 | AF91: *( | AG91: =+X91 -> 6 | AI91: - | AJ91: =+AA85 -> 5.5 | AL91: )- | AM91: =IF((AP91-AS91)<=0,0,+AD85) -> 0 | AO91: *( | AP91: =+AG91 -> 6 | AR91: - | AS91: =+AH85 -> 7 | AU91: )- | AV91: =IF((AY91-BB91)<=0,0,+AK85) -> 0 | AX91: *( | AY91: =+AP91 -> 6 | BA91: - | BB91: =+AO85 -> 9.5 | BD91: )- | BE91: =+AR85 -> 20 | BG91: * | BH91: =+AY91 -> 6 | BJ91: ²/ | BK91: 2 | BL91: = | BM91: =F91*I91-L91*(O91-R91)-U91*(X91-AA91)-AD91*(AG91-AJ91)-AM91*(AP91-AS91)-AV91*(AY91-BB91)-BE91*BH91^2/BK91 -> 460 | BP91: KNm | CG91: IPB (HE-B) 700 | CH91: 306 | CI91: 700 | CJ91: 300 | CK91: 17 | CL91: 32 | CM91: 256900
C92: L / 2 = | E92: =+AJ73/2 -> 5.5 | H92: m. ' deki moment miktarı | CG92: IPB (HE-B) 800 | CH92: 334 | CI92: 800 | CJ92: 300 | CK92: 17.5 | CL92: 33 | CM92: 359100
C93: MB = | E93: =+E85 -> 160 | G93: * | H93: =+E92 -> 5.5 | J93: - | K93: =IF((N93-Q93)<=0,0,+I85) -> 20 | M93: *( | N93: =+H93 -> 5.5 | P93: - | Q93: =+M85 -> 1.5 | S93: )- | T93: =IF((W93-Z93)<=0,0,+P85) -> 20 | V93: *( | W93: =+N93 -> 5.5 | Y93: - | Z93: =+T85 -> 4 | AB93: )- | AC93: =IF((AF93-AI93)<=0,0,+W85) -> 0 | AE93: *( | AF93: =+W93 -> 5.5 | AH93: - | AI93: =+AA85 -> 5.5 | AK93: )- | AL93: =IF((AO93-AR93)<=0,0,+AD85) -> 0 | AN93: *( | AO93: =+AF93 -> 5.5 | AQ93: - | AR93: =+AH85 -> 7 | AT93: )- | AU93: =IF((AX93-BA93)<=0,0,+AK85) -> 0 | AW93: *( | AX93: =+AO93 -> 5.5 | AZ93: - | BA93: =+AO85 -> 9.5 | BC93: )- | BD93: =+AR85 -> 20 | BF93: * | BG93: =+AX93 -> 5.5 | BI93: ²/ | BJ93: 2 | BK93: = | BL93: =E93*H93-K93*(N93-Q93)-T93*(W93-Z93)-AC93*(AF93-AI93)-AL93*(AO93-AR93)-AU93*(AX93-BA93)-BD93*BG93^2/BJ93 -> 467.5 | BO93: KNm | CG93: IPB (HE-B) 900 | CH93: 371 | CI93: 900 | CJ93: 300 | CK93: 18.5 | CL93: 35 | CM93: 494100
C94: L / 4 = | E94: =+AJ73/4 -> 2.75 | H94: m. ' deki moment miktarı | CG94: IPB (HE-B) 1000 | CH94: 400 | CI94: 1000 | CJ94: 300 | CK94: 19 | CL94: 36 | CM94: 644700
C95: MA = | E95: =+E93 -> 160 | G95: * | H95: =+E94 -> 2.75 | J95: - | K95: =IF((N95-Q95)<=0,0,+I85) -> 20 | M95: *( | N95: =+H95 -> 2.75 | P95: - | Q95: =+Q93 -> 1.5 | S95: )- | T95: =IF((W95-Z95)<=0,0,+P85) -> 0 | V95: *( | W95: =+N95 -> 2.75 | Y95: - | Z95: =+Z93 -> 4 | AB95: )- | AC95: =IF((AF95-AI95)<=0,0,+W85) -> 0 | AE95: *( | AF95: =+W95 -> 2.75 | AH95: - | AI95: =+AI93 -> 5.5 | AK95: )- | AL95: =IF((AO95-AR95)<=0,0,+AD85) -> 0 | AN95: *( | AO95: =+AF95 -> 2.75 | AQ95: - | AR95: =+AR93 -> 7 | AT95: )- | AU95: =IF((AX95-BA95)<=0,0,+AK85) -> 0 | AW95: *( | AX95: =+AO95 -> 2.75 | AZ95: - | BA95: =+BA93 -> 9.5 | BC95: )- | BD95: =+AR85 -> 20 | BF95: * | BG95: =+AX95 -> 2.75 | BI95: ²/ | BJ95: 2 | BK95: = | BL95: =E95*H95-K95*(N95-Q95)-T95*(W95-Z95)-AC95*(AF95-AI95)-AL95*(AO95-AR95)-AU95*(AX95-BA95)-BD95*BG95^2/BJ95 -> 339.375 | BO95: KNm | CF95: IPBv (HE-M) profiller | CG95: IPBv (HE-M) 100 | CH95: 53.2 | CI95: 120 | CJ95: 106 | CK95: 12 | CL95: 20 | CM95: 1140
C96: 3 * L / 4 = | F96: =3*AJ73/4 -> 8.25 | I96: m. ' deki moment miktarı | CG96: IPBv (HE-M) 120 | CH96: 66.4 | CI96: 140 | CJ96: 126 | CK96: 12.5 | CL96: 21 | CM96: 2020
C97: MC = | E97: =+E95 -> 160 | G97: * | H97: =+F96 -> 8.25 | J97: - | K97: =IF((N97-Q97)<=0,0,+I85) -> 20 | M97: *( | N97: =+H97 -> 8.25 | P97: - | Q97: =+Q95 -> 1.5 | S97: )- | T97: =IF((W97-Z97)<=0,0,+P85) -> 20 | V97: *( | W97: =+N97 -> 8.25 | Y97: - | Z97: =+Z95 -> 4 | AB97: )- | AC97: =IF((AF97-AI97)<=0,0,+W85) -> 20 | AE97: *( | AF97: =+W97 -> 8.25 | AH97: - | AI97: =+AI95 -> 5.5 | AK97: )- | AL97: =IF((AO97-AR97)<=0,0,+AD85) -> 20 | AN97: *( | AO97: =+AF97 -> 8.25 | AQ97: - | AR97: =+AR95 -> 7 | AT97: )- | AU97: =IF((AX97-BA97)<=0,0,+AK85) -> 0 | AW97: *( | AX97: =+AO97 -> 8.25 | AZ97: - | BA97: =+BA95 -> 9.5 | BC97: )- | BD97: =+BD95 -> 20 | BF97: * | BG97: =+AX97 -> 8.25 | BI97: ²/ | BJ97: 2 | BK97: = | BL97: =E97*H97-K97*(N97-Q97)-T97*(W97-Z97)-AC97*(AF97-AI97)-AL97*(AO97-AR97)-AU97*(AX97-BA97)-BD97*BG97^2/BJ97 -> 339.375 | BO97: KNm | CG97: IPBv (HE-M) 140 | CH97: 80.6 | CI97: 160 | CJ97: 146 | CK97: 13 | CL97: 22 | CM97: 3290
C98: Cb = 12,5 * Mmax / ( 2,5 * Mmax + 3 * MA + 4 * MB + 3 * MC ) | CG98: IPBv (HE-M) 160 | CH98: 97.1 | CI98: 180 | CJ98: 166 | CK98: 14 | CL98: 23 | CM98: 5100
C99: Cb = | E99: 12.5 | G99: * | H99: =ABS(BM91) -> 460 | K99: /( | L99: 2.5 | N99: * | O99: =+H99 -> 460 | R99: + | S99: 3 | T99: * | U99: =ABS(BL95) -> 339.375 | X99: + | Y99: 4 | Z99: * | AA99: =ABS(BL93) -> 467.5 | AD99: + | AE99: 3 | AF99: * | AG99: =ABS(BL97) -> 339.375 | AJ99: )= | AK99: =E99*H99/(L99*O99+S99*U99+Y99*AA99+AE99*AG99) -> 1.137206428 | CG99: IPBv (HE-M) 180 | CH99: 113 | CI99: 200 | CJ99: 186 | CK99: 14.5 | CL99: 24 | CM99: 7480
C100: SEHİM HESABI | CG100: IPBv (HE-M) 200 | CH100: 131 | CI100: 220 | CJ100: 206 | CK100: 15 | CL100: 25 | CM100: 10640
C101: E * I / 108 dy / dx = | I101: =+E85 -> 160 | K101: * x² / | M101: 2 | N101: - | O101: =+I85 -> 20 | Q101: *( x - | S101: =+M85 -> 1.5 | U101: )² / 2 - | W101: =+P85 -> 20 | Y101: *( x - | AA101: =+T85 -> 4 | AC101: )² / 2 - | AE101: =+W85 -> 20 | AG101: *( x - | AI101: =+AA85 -> 5.5 | AK101: )² / 2 - | AM101: =+AD85 -> 20 | AO101: *( x - | AQ101: =+AH85 -> 7 | AS101: )² / 2 - | AU101: =+AK85 -> 20 | AW101: *( x - | AY101: =+AO85 -> 9.5 | BA101: )² / 2 | BC101: - | BD101: =+AR85 -> 20 | BF101: * | BG101: x3 | BH101: / | BI101: 6 | BJ101: + | BK101: C1 | BN101: (integral) | CG101: IPBv (HE-M) 220 | CH101: 149 | CI101: 240 | CJ101: 226 | CK101: 15.5 | CL101: 26 | CM101: 14600
C102: E * I / 108 * y = | H102: =+I101 -> 160 | J102: * x3 / | L102: 6 | M102: - | N102: =+O101 -> 20 | P102: *( x - | R102: =+S101 -> 1.5 | T102: )3 / 6 - | V102: =+W101 -> 20 | X102: *( x - | Z102: =+AA101 -> 4 | AB102: )3 / 6 - | AD102: =+AE101 -> 20 | AF102: *( x - | AH102: =+AI101 -> 5.5 | AJ102: )3 / 6 - | AL102: =+AM101 -> 20 | AN102: *( x - | AP102: =+AQ101 -> 7 | AR102: )3 / 6 - | AT102: =+AU101 -> 20 | AV102: *( x - | AX102: =+AY101 -> 9.5 | AZ102: )3 / 6 | BB102: - | BC102: =+BD101 -> 20 | BE102: * | BF102: x4 | BG102: / | BH102: 24 | BJ102: + C1 * x + C2 | BP102: (integral) | CG102: IPBv (HE-M) 240 | CH102: 200 | CI102: 270 | CJ102: 248 | CK102: 18 | CL102: 32 | CM102: 24290
C103: x = 0 ; y = 0 ; C2 = 0 | CG103: IPBv (HE-M) 260 | CH103: 220 | CI103: 290 | CJ103: 268 | CK103: 18 | CL103: 32.5 | CM103: 31310
C104: x= | D104: =+AJ73 -> 11 | F104: m | G104: ; | H104: y = 0 | CG104: IPBv (HE-M) 280 | CH104: 240 | CI104: 310 | CJ104: 288 | CK104: 18.5 | CL104: 33 | CM104: 39550
C105: =+H102 -> 160 | E105: * | F105: =+D104 -> 11 | H105: 3/ | I105: 6 | J105: - | K105: =+N102 -> 20 | M105: *( | N105: =+D104 -> 11 | P105: - | Q105: =+R102 -> 1.5 | S105: )3/ | T105: 6 | U105: - | V105: =+V102 -> 20 | X105: *( | Y105: =+N105 -> 11 | AA105: - | AB105: =+Z102 -> 4 | AD105: )3/ | AE105: 6 | AF105: - | AG105: =+AD102 -> 20 | AI105: *( | AJ105: =+Y105 -> 11 | AL105: - | AM105: =+AH102 -> 5.5 | AO105: )3/ | AP105: 6 | AQ105: - | AR105: =+AL102 -> 20 | AT105: *( | AU105: =+AJ105 -> 11 | AW105: - | AX105: =+AP102 -> 7 | AZ105: )3/ | BA105: 6 | BB105: - | BC105: =+AT102 -> 20 | BE105: *( | BF105: =+AU105 -> 11 | BH105: - | BI105: =+AX102 -> 9.5 | BK105: )3/ | BL105: 6 | BM105: - | BN105: =+BC102 -> 20 | BP105: * | BQ105: =+BF105 -> 11 | BS105: 4/ | BT105: 24 | BV105: + | BW105: =+BF105 -> 11 | BY105: * | BZ105: C1 | CA105: = | CB105: 0 | CG105: IPBv (HE-M) 300 | CH105: 303 | CI105: 340 | CJ105: 310 | CK105: 21 | CL105: 39 | CM105: 59200
C106: C1 = | E106: =-(C105*F105^3/I105-K105*(N105-Q105)^3/T105-V105*(Y105-AB105)^3/AE105-AG105*(AJ105-AM105)^3/AP105-AR105*(AU105-AX105)^3/BA105-BC105*(BF105-BI105)^3/BL105-BN105*BQ105^4/BT105)/BW105 -> -1682.916667 | CG106: IPBv (HE-M) 320/305 | CH106: 225 | CI106: 320 | CJ106: 305 | CK106: 16 | CL106: 29 | CM106: 40950
C107: E * I / 108 * y = | H107: =+H102 -> 160 | J107: * x3 / | L107: 6 | M107: - | N107: =+N102 -> 20 | P107: *( x - | R107: =+R102 -> 1.5 | T107: )3 / 6 - | V107: =+V102 -> 20 | X107: *( x - | Z107: =+Z102 -> 4 | AB107: )3 / 6 - | AD107: =+AD102 -> 20 | AF107: *( x - | AH107: =+AH102 -> 5.5 | AJ107: )3 / 6 - | AL107: =+AL102 -> 20 | AN107: *( x - | AP107: =+AP102 -> 7 | AR107: )3 / 6 - | AT107: =+AT102 -> 20 | AV107: *( x - | AX107: =+AX102 -> 9.5 | AZ107: )3 / 6 | BB107: - | BC107: =+BN105 -> 20 | BE107: * | BF107: x4 | BG107: / | BH107: 24 | BJ107: + | BK107: =+E106 -> -1682.916667 | BN107: * | BO107: x | CG107: IPBv (HE-M) 320 | CH107: 312 | CI107: 359 | CJ107: 309 | CK107: 21 | CL107: 40 | CM107: 68130
C108: y = ( | E108: =+H107 -> 160 | G108: * x3 / | I108: 6 | J108: - | K108: =+N107 -> 20 | M108: *( x - | O108: =+R107 -> 1.5 | Q108: )3 / 6 - | S108: =+V107 -> 20 | U108: *( x - | W108: =+Z107 -> 4 | Y108: )3 / 6 - | AA108: =+AD107 -> 20 | AC108: *( x - | AE108: =+AH107 -> 5.5 | AG108: )3 / 6 - | AI108: =+AL107 -> 20 | AK108: *( x - | AM108: =+AP107 -> 7 | AO108: )3 / 6 - | AQ108: =+AT107 -> 20 | AS108: *( x - | AU108: =+AX107 -> 9.5 | AW108: )3 / 6 | AY108: - | AZ108: =+BC107 -> 20 | BB108: * | BC108: x4 | BD108: / | BE108: 24 | BG108: + | BH108: =+BK107 -> -1682.916667 | BK108: * | BL108: x ) * 108 / ( E * I ) | CG108: IPBv (HE-M) 340 | CH108: 316 | CI108: 377 | CJ108: 309 | CK108: 21 | CL108: 40 | CM108: 76770
C109: x= | D109: =+AJ73/2 -> 5.5 | G109: m. ' deki sehim miktarı | P109: =IF(D109<=AJ73,"","azalt.") ->  | CG109: IPBv (HE-M) 360 | CH109: 319 | CI109: 395 | CJ109: 308 | CK109: 21 | CL109: 40 | CM109: 84870
C110: y = ( | E110: =+E108 -> 160 | G110: * | H110: =+D109 -> 5.5 | J110: 3/ | K110: 6 | L110: - | M110: =IF((P110-S110)<=0,0,+K108) -> 20 | O110: *( | P110: =+D109 -> 5.5 | R110: - | S110: =+O108 -> 1.5 | U110: )3/ | V110: 6 | W110: - | X110: =IF((AA110-AD110)<=0,0,+S108) -> 20 | Z110: *( | AA110: =+P110 -> 5.5 | AC110: - | AD110: =+W108 -> 4 | AF110: )3/ | AG110: 6 | AH110: - | AI110: =IF((AL110-AO110)<=0,0,+AA108) -> 0 | AK110: *( | AL110: =+AA110 -> 5.5 | AN110: - | AO110: =+AE108 -> 5.5 | AQ110: )3/ | AR110: 6 | AS110: - | AT110: =IF((AW110-AZ110)<=0,0,+AI108) -> 0 | AV110: *( | AW110: =+AL110 -> 5.5 | AY110: - | AZ110: =+AM108 -> 7 | BB110: )3/ | BC110: 6 | BD110: - | BE110: =IF((BH110-BK110)<=0,0,+AQ108) -> 0 | BG110: *( | BH110: =+AW110 -> 5.5 | BJ110: - | BK110: =+AU108 -> 9.5 | BM110: )3/ | BN110: 6 | BO110: - | BP110: =+AZ108 -> 20 | BR110: * | BS110: =+BH110 -> 5.5 | BU110: 4/ | BV110: 24 | BX110: + | CG110: IPBv (HE-M) 400 | CH110: 326 | CI110: 432 | CJ110: 307 | CK110: 21 | CL110: 40 | CM110: 104100
E111: + | F111: =+BH108 -> -1682.916667 | I111: * | J111: =+BH110 -> 5.5 | L111: )* 108 / ( | O111: =+Z76 -> 200000 | R111: * | S111: =+Z75 -> 92080 | V111: ) | CG111: IPBv (HE-M) 450 | CH111: 335 | CI111: 478 | CJ111: 307 | CK111: 21 | CL111: 40 | CM111: 131500
C112: y = | E112: =-(E110*H110^3/K110-M110*(P110-S110)^3/V110-X110*(AA110-AD110)^3/AG110-AI110*(AL110-AO110)^3/AR110-AT110*(AW110-AZ110)^3/BC110-BE110*(BH110-BK110)^3/BN110-BP110*BS110^4/BV110+F111*J111)*100000000/(O111*S111) -> 31.5297047 | H112: mm | CG112: IPBv (HE-M) 500 | CH112: 344 | CI112: 524 | CJ112: 306 | CK112: 21 | CL112: 40 | CM112: 161900
C113: ymax = L / 300 = | H113: =+AJ73*1000 -> 11000 | K113: / | L113: 300 | N113: = | O113: =+H113/L113 -> 36.66666667 | R113: mm | U113: (izin verilebilir çelik kiriş max sehim miktarı) | CG113: IPBv (HE-M) 550 | CH113: 354 | CI113: 572 | CJ113: 306 | CK113: 21 | CL113: 40 | CM113: 198000
C114: y= | D114: =+E112 -> 31.5297047 | G114: mm | I114: =IF(D114<M114,"<",">") -> < | J114: ymax = | M114: =+O113 -> 36.66666667 | P114: mm | R114: =IF(D114<M114,"uygun.","uygun değil.") -> uygun. | CG114: IPBv (HE-M) 600 | CH114: 364 | CI114: 620 | CJ114: 305 | CK114: 21 | CL114: 40 | CM114: 237400
CG115: IPBv (HE-M) 650 | CH115: 374 | CI115: 668 | CJ115: 305 | CK115: 21 | CL115: 40 | CM115: 281700
CG116: IPBv (HE-M) 700 | CH116: 383 | CI116: 716 | CJ116: 304 | CK116: 21 | CL116: 40 | CM116: 329300
B117: TEKİL & YAYILI YÜKLÜ ÇELİK BASİT KİRİŞ SEHİM HESABI (4 adet tekil yüklü) (inş.müh. Gürcan BERBEROĞLU tel:0532 366 02 04 www.betoncelik.com ) | CG117: IPBv (HE-M) 800 | CH117: 404 | CI117: 814 | CJ117: 303 | CK117: 21 | CL117: 40 | CM117: 442600
S118: Dikkat sadece sarı hücrelere data girilecek. | CG118: IPBv (HE-M) 900 | CH118: 424 | CI118: 910 | CJ118: 302 | CK118: 21 | CL118: 40 | CM118: 570400
AW119: Not : sehim hesabında (G + Q) yük terimleri kullanılmalı. | CG119: IPBv (HE-M) 1000 | CH119: 444 | CI119: 1008 | CJ119: 302 | CK119: 21 | CL119: 40 | CM119: 772300
O120: IPE 600 | Z120: 20 | AB120: KN | AE120: 20 | AG120: KN | AJ120: 20 | AL120: KN | AO120: 20 | AQ120: KN | CG120: YENİ
AG121: 30 | AI121: KN/m
BE122: eğilme ve kesme tasarımında kullanılacak değerler
BE123: Cb = | BG123: =+AK156 -> 1.140775524
C124: =INDEX($CI$6:$CI$120,MATCH(O120,$CG$6:$CG$120,0),0) -> 600 | BE124: Max = | BG124: =+BD148 -> 371.0297722 | BJ124: KNm | BL124: (max moment)
Y125: x | BE125: Vmax = | BH125: =MAX(U127,AT127) -> 169.8529412 | BK125: KN | BM125: (max kesme kuvveti)
J126: =INDEX($CK$6:$CK$120,MATCH(O120,$CG$6:$CG$120,0),0) -> 12
T127: A= | U127: =+E137 -> 169.8529412 | W127: KN | AS127: B= | AT127: =+E140 -> 165.1470588 | AV127: KN
W128: 1.5 | Y128: m | AB128: 1.5 | AD128: m | AG128: 1.5 | AI128: m | AL128: 2.5 | AN128: m | AQ128: 1.5 | AS128: m
K129: =INDEX($CL$6:$CL$120,MATCH(O120,$CG$6:$CG$120,0),0) -> 19
AF130: L= | AG130: =+W128+AB128+AG128+AL128+AQ128 -> 8.5 | AI130: m | BC130: Çelik yönetmelik madde 9.1.(c) uyarınca
BC131: ( MA = L / 4 mesafedeki gerekli eğilme momentinin mutlak değeri )
I132: =INDEX($CJ$6:$CJ$120,MATCH(O120,$CG$6:$CG$120,0),0) -> 220 | X132: Ix = | Z132: =INDEX($CM$6:$CM$120,MATCH(O120,$CG$6:$CG$120,0),0) -> 92080 | AD132: cm4 | AG132: (kiriş atalet momenti) | BC132: ( MB = L / 2 mesafedeki gerekli eğilme momentinin mutlak değeri )
X133: E = | Z133: 200000 | AD133: N/mm² | AG133: (kiriş elastisite modülü) | BC133: ( MC = 3 * L / 4 mesafedeki gerekli eğilme momentinin mutlak değeri )
C134: MESNET TEPKİLERİ
C135: MB = 0 (sağ mesnette moment sıfır şartından)
C136: A | D136: * | E136: =+AG130 -> 8.5 | G136: - | H136: =+Z120 -> 20 | J136: * | K136: =+AB128+AG128+AL128+AQ128 -> 7 | M136: - | N136: =+AE120 -> 20 | P136: * | Q136: =+AG128+AL128+AQ128 -> 5.5 | S136: - | T136: =+AJ120 -> 20 | V136: * | W136: =+AL128+AQ128 -> 4 | Y136: - | Z136: =+AO120 -> 20 | AB136: * | AC136: =+AQ128 -> 1.5 | AE136: - | AF136: =+AG121 -> 30 | AH136: * | AI136: =+AG130 -> 8.5 | AK136: * | AL136: =+AG130/2 -> 4.25 | AN136: = | AO136: 0
C137: A = | E137: =(H136*K136+N136*Q136+T136*W136+Z136*AC136+AF136*AI136*AL136)/E136 -> 169.8529412 | G137: KN | I137: (sol mesnet tepkisi)
C138: Fy = 0 (düşey denge denklemi yazılırsa)
C139: A | D139: + | E139: B | F139: - | G139: =+Z120 -> 20 | I139: - | J139: =+AE120 -> 20 | L139: - | M139: =+AJ120 -> 20 | O139: * | P139: =+AO120 -> 20 | R139: - | S139: =+AG121 -> 30 | U139: * | V139: =+AG130 -> 8.5 | X139: = | Y139: 0
C140: B = | E140: =(G139+J139+M139+P139+S139*V139-E137) -> 165.1470588 | G140: KN | I140: (sağ mesnet tepkisi)
C141: ARA KESİT TESİRLERİ
C142: Mx = | E142: =+U127 -> 169.8529412 | G142: * x - | I142: =+Z120 -> 20 | K142: *( x - | M142: =+W128 -> 1.5 | O142: )- | P142: =+AE120 -> 20 | R142: *( x - | T142: =+W128+AB128 -> 3 | V142: )- | W142: =+AJ120 -> 20 | Y142: *( x - | AA142: =+W128+AB128+AG128 -> 4.5 | AC142: )- | AD142: =+AO120 -> 20 | AF142: *( x - | AH142: =+W128+AB128+AG128+AL128 -> 7 | AJ142: )- | AK142: =+AG121 -> 30 | AM142: * | AN142: x² | AO142: / | AP142: 2
C143: x= | D143: =+AG130/2 -> 4.25 | G143: m. ' deki moment ve kesme kuvveti miktarı | U143: =IF(D143<=AG130,"","azalt.") -> 
C144: Mx = | E144: =+E142 -> 169.8529412 | G144: * | H144: =+D143 -> 4.25 | J144: - | K144: =IF((N144-Q144)<=0,0,+I142) -> 20 | M144: *( | N144: =+H144 -> 4.25 | P144: - | Q144: =+M142 -> 1.5 | S144: )- | T144: =IF((W144-Z144)<=0,0,+P142) -> 20 | V144: *( | W144: =+N144 -> 4.25 | Y144: - | Z144: =+T142 -> 3 | AB144: )- | AC144: =IF((AF144-AI144)<=0,0,+W142) -> 0 | AE144: *( | AF144: =+W144 -> 4.25 | AH144: - | AI144: =+AA142 -> 4.5 | AK144: )- | AL144: =IF((AO144-AR144)<=0,0,+AD142) -> 0 | AN144: *( | AO144: =+AF144 -> 4.25 | AQ144: - | AR144: =+AH142 -> 7 | AT144: )- | AU144: =+AK142 -> 30 | AW144: * | AX144: =+AO144 -> 4.25 | AZ144: ²/ | BA144: 2 | BB144: = | BC144: =E144*H144-K144*(N144-Q144)-T144*(W144-Z144)-AC144*(AF144-AI144)-AL144*(AO144-AR144)-AU144*AX144^2/BA144 -> 370.9375 | BF144: KNm
C145: Vx = | E145: =+E144 -> 169.8529412 | G145: - | H145: =+K144 -> 20 | J145: - | K145: =+T144 -> 20 | M145: - | N145: =+AC144 -> 0 | P145: - | Q145: =+AL144 -> 0 | S145: - | T145: =+AU144 -> 30 | V145: * | W145: =+AX144 -> 4.25 | Y145: = | Z145: =+E145-H145-K145-N145-Q145-T145*W145 -> 2.352941176 | AC145: KN
C146: EĞİLME HESABINDA KULLANILMAK ÜZERE Cb KATSAYISI İÇİN ( Mmax ; MA ; MB ; MC ) HESABI (Çelik yönetmelik madde 9.1.(c) uyarınca)
C147: x= | D147: =(E145-H145-K145-N145-Q145)/T145 -> 4.328431373 | G147: m. ' deki max moment miktarı
C148: Mmax = | F148: =+E142 -> 169.8529412 | H148: * | I148: =+D147 -> 4.328431373 | K148: - | L148: =IF((O148-R148)<=0,0,+I142) -> 20 | N148: *( | O148: =+I148 -> 4.328431373 | Q148: - | R148: =+M142 -> 1.5 | T148: )- | U148: =IF((X148-AA148)<=0,0,+P142) -> 20 | W148: *( | X148: =+O148 -> 4.328431373 | Z148: - | AA148: =+T142 -> 3 | AC148: )- | AD148: =IF((AG148-AJ148)<=0,0,+W142) -> 0 | AF148: *( | AG148: =+X148 -> 4.328431373 | AI148: - | AJ148: =+AA142 -> 4.5 | AL148: )- | AM148: =IF((AP148-AS148)<=0,0,+AD142) -> 0 | AO148: *( | AP148: =+AG148 -> 4.328431373 | AR148: - | AS148: =+AH142 -> 7 | AU148: )- | AV148: =+AK142 -> 30 | AX148: * | AY148: =+AP148 -> 4.328431373 | BA148: ²/ | BB148: 2 | BC148: = | BD148: =F148*I148-L148*(O148-R148)-U148*(X148-AA148)-AD148*(AG148-AJ148)-AM148*(AP148-AS148)-AV148*AY148^2/BB148 -> 371.0297722 | BG148: KNm
C149: L / 2 = | E149: =+AG130/2 -> 4.25 | H149: m. ' deki moment miktarı
C150: MB = | E150: =+E142 -> 169.8529412 | G150: * | H150: =+E149 -> 4.25 | J150: - | K150: =IF((N150-Q150)<=0,0,+I142) -> 20 | M150: *( | N150: =+H150 -> 4.25 | P150: - | Q150: =+M142 -> 1.5 | S150: )- | T150: =IF((W150-Z150)<=0,0,+P142) -> 20 | V150: *( | W150: =+N150 -> 4.25 | Y150: - | Z150: =+T142 -> 3 | AB150: )- | AC150: =IF((AF150-AI150)<=0,0,+W142) -> 0 | AE150: *( | AF150: =+W150 -> 4.25 | AH150: - | AI150: =+AA142 -> 4.5 | AK150: )- | AL150: =IF((AO150-AR150)<=0,0,+AD142) -> 0 | AN150: *( | AO150: =+AF150 -> 4.25 | AQ150: - | AR150: =+AH142 -> 7 | AT150: )- | AU150: =+AK142 -> 30 | AW150: * | AX150: =+AO150 -> 4.25 | AZ150: ²/ | BA150: 2 | BB150: = | BC150: =E150*H150-K150*(N150-Q150)-T150*(W150-Z150)-AC150*(AF150-AI150)-AL150*(AO150-AR150)-AU150*AX150^2/BA150 -> 370.9375 | BF150: KNm
C151: L / 4 = | E151: =+AG130/4 -> 2.125 | H151: m. ' deki moment miktarı
C152: MA = | E152: =+E150 -> 169.8529412 | G152: * | H152: =+E151 -> 2.125 | J152: - | K152: =IF((N152-Q152)<=0,0,+I142) -> 20 | M152: *( | N152: =+H152 -> 2.125 | P152: - | Q152: =+Q150 -> 1.5 | S152: )- | T152: =IF((W152-Z152)<=0,0,+P142) -> 0 | V152: *( | W152: =+N152 -> 2.125 | Y152: - | Z152: =+Z150 -> 3 | AB152: )- | AC152: =IF((AF152-AI152)<=0,0,+W142) -> 0 | AE152: *( | AF152: =+W152 -> 2.125 | AH152: - | AI152: =+AI150 -> 4.5 | AK152: )- | AL152: =IF((AO152-AR152)<=0,0,+AD142) -> 0 | AN152: *( | AO152: =+AF152 -> 2.125 | AQ152: - | AR152: =+AR150 -> 7 | AT152: )- | AU152: =+AU150 -> 30 | AW152: * | AX152: =+AO152 -> 2.125 | AZ152: ²/ | BA152: 2 | BB152: = | BC152: =E152*H152-K152*(N152-Q152)-T152*(W152-Z152)-AC152*(AF152-AI152)-AL152*(AO152-AR152)-AU152*AX152^2/BA152 -> 280.703125 | BF152: KNm
C153: 3 * L / 4 = | F153: =3*AG130/4 -> 6.375 | I153: m. ' deki moment miktarı
C154: MC = | E154: =+E152 -> 169.8529412 | G154: * | H154: =+F153 -> 6.375 | J154: - | K154: =IF((N154-Q154)<=0,0,+I142) -> 20 | M154: *( | N154: =+H154 -> 6.375 | P154: - | Q154: =+Q152 -> 1.5 | S154: )- | T154: =IF((W154-Z154)<=0,0,+P142) -> 20 | V154: *( | W154: =+N154 -> 6.375 | Y154: - | Z154: =+Z152 -> 3 | AB154: )- | AC154: =IF((AF154-AI154)<=0,0,+W142) -> 20 | AE154: *( | AF154: =+W154 -> 6.375 | AH154: - | AI154: =+AI152 -> 4.5 | AK154: )- | AL154: =IF((AO154-AR154)<=0,0,+AD142) -> 0 | AN154: *( | AO154: =+AF154 -> 6.375 | AQ154: - | AR154: =+AR152 -> 7 | AT154: )- | AU154: =+AU152 -> 30 | AW154: * | AX154: =+AO154 -> 6.375 | AZ154: ²/ | BA154: 2 | BB154: = | BC154: =E154*H154-K154*(N154-Q154)-T154*(W154-Z154)-AC154*(AF154-AI154)-AL154*(AO154-AR154)-AU154*AX154^2/BA154 -> 270.703125 | BF154: KNm
C155: Cb = 12,5 * Mmax / ( 2,5 * Mmax + 3 * MA + 4 * MB + 3 * MC )
C156: Cb = | E156: 12.5 | G156: * | H156: =ABS(BD148) -> 371.0297722 | K156: /( | L156: 2.5 | N156: * | O156: =+H156 -> 371.0297722 | R156: + | S156: 3 | T156: * | U156: =ABS(BC152) -> 280.703125 | X156: + | Y156: 4 | Z156: * | AA156: =ABS(BC150) -> 370.9375 | AD156: + | AE156: 3 | AF156: * | AG156: =ABS(BC154) -> 270.703125 | AJ156: )= | AK156: =E156*H156/(L156*O156+S156*U156+Y156*AA156+AE156*AG156) -> 1.140775524
C157: SEHİM HESABI
C158: E * I / 108 dy / dx = | I158: =+E142 -> 169.8529412 | K158: * x² / | M158: 2 | N158: - | O158: =+I142 -> 20 | Q158: *( x - | S158: =+M142 -> 1.5 | U158: )² / 2 - | W158: =+P142 -> 20 | Y158: *( x - | AA158: =+T142 -> 3 | AC158: )² / 2 - | AE158: =+W142 -> 20 | AG158: *( x - | AI158: =+AA142 -> 4.5 | AK158: )² / 2 - | AM158: =+AD142 -> 20 | AO158: *( x - | AQ158: =+AH142 -> 7 | AS158: )² / 2 | AU158: - | AV158: =+AK142 -> 30 | AX158: * | AY158: x3 | AZ158: / | BA158: 6 | BB158: + | BC158: C1 | BF158: (integral)
C159: E * I / 108 * y = | H159: =+I158 -> 169.8529412 | J159: * x3 / | L159: 6 | M159: - | N159: =+O158 -> 20 | P159: *( x - | R159: =+S158 -> 1.5 | T159: )3 / 6 - | V159: =+W158 -> 20 | X159: *( x - | Z159: =+AA158 -> 3 | AB159: )3 / 6 - | AD159: =+AE158 -> 20 | AF159: *( x - | AH159: =+AI158 -> 4.5 | AJ159: )3 / 6 - | AL159: =+AM158 -> 20 | AN159: *( x - | AP159: =+AQ158 -> 7 | AR159: )3 / 6 | AT159: - | AU159: =+AV158 -> 30 | AW159: * | AX159: x4 | AY159: / | AZ159: 24 | BB159: + C1 * x + C2 | BH159: (integral)
C160: x = 0 ; y = 0 ; C2 = 0
C161: x= | D161: =+AG130 -> 8.5 | F161: m | G161: ; | H161: y = 0
C162: =+H159 -> 169.8529412 | E162: * | F162: =+D161 -> 8.5 | H162: 3/ | I162: 6 | J162: - | K162: =+N159 -> 20 | M162: *( | N162: =+D161 -> 8.5 | P162: - | Q162: =+R159 -> 1.5 | S162: )3/ | T162: 6 | U162: - | V162: =+V159 -> 20 | X162: *( | Y162: =+N162 -> 8.5 | AA162: - | AB162: =+Z159 -> 3 | AD162: )3/ | AE162: 6 | AF162: - | AG162: =+AD159 -> 20 | AI162: *( | AJ162: =+Y162 -> 8.5 | AL162: - | AM162: =+AH159 -> 4.5 | AO162: )3/ | AP162: 6 | AQ162: - | AR162: =+AL159 -> 20 | AT162: *( | AU162: =+AJ162 -> 8.5 | AW162: - | AX162: =+AP159 -> 7 | AZ162: )3/ | BA162: 6 | BB162: - | BC162: =+AU159 -> 30 | BE162: * | BF162: =+AU162 -> 8.5 | BH162: 4/ | BI162: 24 | BK162: + | BL162: =+AU162 -> 8.5 | BN162: * | BO162: C1 | BP162: = | BQ162: 0
C163: C1 = | E163: =-(C162*F162^3/I162-K162*(N162-Q162)^3/T162-V162*(Y162-AB162)^3/AE162-AG162*(AJ162-AM162)^3/AP162-AR162*(AU162-AX162)^3/BA162-BC162*BF162^4/BI162)/BL162 -> -1051.479779
C164: E * I / 108 * y = | H164: =+H159 -> 169.8529412 | J164: * x3 / | L164: 6 | M164: - | N164: =+N159 -> 20 | P164: *( x - | R164: =+R159 -> 1.5 | T164: )3 / 6 - | V164: =+V159 -> 20 | X164: *( x - | Z164: =+Z159 -> 3 | AB164: )3 / 6 - | AD164: =+AD159 -> 20 | AF164: *( x - | AH164: =+AH159 -> 4.5 | AJ164: )3 / 6 - | AL164: =+AL159 -> 20 | AN164: *( x - | AP164: =+AP159 -> 7 | AR164: )3 / 6 | AT164: - | AU164: =+BC162 -> 30 | AW164: * | AX164: x4 | AY164: / | AZ164: 24 | BB164: + | BC164: =+E163 -> -1051.479779 | BF164: * | BG164: x
C165: y = ( | E165: =+H164 -> 169.8529412 | G165: * x3 / | I165: 6 | J165: - | K165: =+N164 -> 20 | M165: *( x - | O165: =+R164 -> 1.5 | Q165: )3 / 6 - | S165: =+V164 -> 20 | U165: *( x - | W165: =+Z164 -> 3 | Y165: )3 / 6 - | AA165: =+AD164 -> 20 | AC165: *( x - | AE165: =+AH164 -> 4.5 | AG165: )3 / 6 - | AI165: =+AL164 -> 20 | AK165: *( x - | AM165: =+AP164 -> 7 | AO165: )3 / 6 | AQ165: - | AR165: =+AU164 -> 30 | AT165: * | AU165: x4 | AV165: / | AW165: 24 | AY165: + | AZ165: =+BC164 -> -1051.479779 | BC165: * | BD165: x ) * 108 / ( E * I )
C166: x= | D166: =+AG130/2 -> 4.25 | G166: m. ' deki sehim miktarı | P166: =IF(D166<=AG130,"","azalt.") -> 
C167: y = ( | E167: =+E165 -> 169.8529412 | G167: * | H167: =+D166 -> 4.25 | J167: 3/ | K167: 6 | L167: - | M167: =IF((P167-S167)<=0,0,+K165) -> 20 | O167: *( | P167: =+D166 -> 4.25 | R167: - | S167: =+O165 -> 1.5 | U167: )3/ | V167: 6 | W167: - | X167: =IF((AA167-AD167)<=0,0,+S165) -> 20 | Z167: *( | AA167: =+P167 -> 4.25 | AC167: - | AD167: =+W165 -> 3 | AF167: )3/ | AG167: 6 | AH167: - | AI167: =IF((AL167-AO167)<=0,0,+AA165) -> 0 | AK167: *( | AL167: =+AA167 -> 4.25 | AN167: - | AO167: =+AE165 -> 4.5 | AQ167: )3/ | AR167: 6 | AS167: - | AT167: =IF((AW167-AZ167)<=0,0,+AI165) -> 0 | AV167: *( | AW167: =+AL167 -> 4.25 | AY167: - | AZ167: =+AM165 -> 7 | BB167: )3/ | BC167: 6 | BD167: - | BE167: =+AR165 -> 30 | BG167: * | BH167: =+AW167 -> 4.25 | BJ167: 4/ | BK167: 24 | BM167: +
D168: + | E168: =+AZ165 -> -1051.479779 | H168: * | I168: =+AW167 -> 4.25 | K168: )* 108 / ( | N168: =+Z133 -> 200000 | Q168: * | R168: =+Z132 -> 92080 | U168: )
C169: y = | E169: =-(E167*H167^3/K167-M167*(P167-S167)^3/V167-X167*(AA167-AD167)^3/AG167-AI167*(AL167-AO167)^3/AR167-AT167*(AW167-AZ167)^3/BC167-BE167*BH167^4/BK167+E168*I168)*100000000/(N168*R168) -> 15.09174222 | H169: mm
C170: ymax = L / 300 = | H170: =+AG130*1000 -> 8500 | K170: / | L170: 300 | N170: = | O170: =+H170/L170 -> 28.33333333 | R170: mm | U170: (izin verilebilir çelik kiriş max sehim miktarı)
C171: y= | D171: =+E169 -> 15.09174222 | G171: mm | I171: =IF(D171<M171,"<",">") -> < | J171: ymax = | M171: =+O170 -> 28.33333333 | P171: mm | R171: =IF(D171<M171,"uygun.","uygun değil.") -> uygun.
B174: TEKİL & YAYILI YÜKLÜ ÇELİK BASİT KİRİŞ SEHİM HESABI (3 adet tekil yüklü) (inş.müh. Gürcan BERBEROĞLU tel:0532 366 02 04 www.betoncelik.com )
S175: Dikkat sadece sarı hücrelere data girilecek.
AQ176: Not : sehim hesabında (G + Q) yük terimleri kullanılmalı.
O177: IPE 600 | Z177: 20 | AB177: KN | AE177: 20 | AG177: KN | AJ177: 20 | AL177: KN
AG178: 30 | AI178: KN/m
AW179: eğilme ve kesme tasarımında kullanılacak değerler
AW180: Cb = | AY180: =+AK213 -> 1.120797011
C181: =INDEX($CI$6:$CI$120,MATCH(O177,$CG$6:$CG$120,0),0) -> 600 | AW181: Max = | AY181: =+AU205 -> 180 | BB181: KNm | BD181: (max moment)
Y182: x | AW182: Vmax = | AZ182: =MAX(U184,AO184) -> 120 | BC182: KN | BE182: (max kesme kuvveti)
J183: =INDEX($CK$6:$CK$120,MATCH(O177,$CG$6:$CG$120,0),0) -> 12
T184: A= | U184: =+E194 -> 120 | W184: KN | AN184: B= | AO184: =+E197 -> 120 | AQ184: KN
W185: 1 | Y185: m | Z185: m | AB185: 2 | AD185: m | AG185: 2 | AI185: m | AL185: 1 | AN185: m
K186: =INDEX($CL$6:$CL$120,MATCH(O177,$CG$6:$CG$120,0),0) -> 19
AD187: L= | AE187: =+W185+AB185+AG185+AL185 -> 6 | AG187: m | AV187: Çelik yönetmelik madde 9.1.(c) uyarınca
AV188: ( MA = L / 4 mesafedeki gerekli eğilme momentinin mutlak değeri )
I189: =INDEX($CJ$6:$CJ$120,MATCH(O177,$CG$6:$CG$120,0),0) -> 220 | X189: Ix = | Z189: =INDEX($CM$6:$CM$120,MATCH(O177,$CG$6:$CG$120,0),0) -> 92080 | AD189: cm4 | AG189: (kiriş atalet momenti) | AV189: ( MB = L / 2 mesafedeki gerekli eğilme momentinin mutlak değeri )
X190: E = | Z190: 200000 | AD190: N/mm² | AG190: (kiriş elastisite modülü) | AV190: ( MC = 3 * L / 4 mesafedeki gerekli eğilme momentinin mutlak değeri )
C191: MESNET TEPKİLERİ
C192: MB = 0 (sağ mesnette moment sıfır şartından)
C193: A | D193: * | E193: =+AE187 -> 6 | G193: - | H193: =+Z177 -> 20 | J193: * | K193: =+AB185+AG185+AL185 -> 5 | M193: - | N193: =+AE177 -> 20 | P193: * | Q193: =+AG185+AL185 -> 3 | S193: - | T193: =+AJ177 -> 20 | V193: * | W193: =+AL185 -> 1 | Y193: - | Z193: =+AG178 -> 30 | AB193: * | AC193: =+AE187 -> 6 | AE193: * | AF193: =+AE187/2 -> 3 | AH193: = | AI193: 0
C194: A = | E194: =(H193*K193+N193*Q193+T193*W193+Z193*AC193*AF193)/E193 -> 120 | G194: KN | I194: (sol mesnet tepkisi)
C195: Fy = 0 (düşey denge denklemi yazılırsa)
C196: A | D196: + | E196: B | F196: - | G196: =+Z177 -> 20 | I196: - | J196: =+AE177 -> 20 | L196: - | M196: =+AJ177 -> 20 | O196: - | P196: =+AG178 -> 30 | R196: * | S196: =+AE187 -> 6 | U196: = | V196: 0
C197: B = | E197: =(G196+J196+M196+P196*S196-E194) -> 120 | G197: KN | I197: (sağ mesnet tepkisi)
C198: ARA KESİT TESİRLERİ
C199: Mx = | E199: =+U184 -> 120 | G199: * x - | I199: =+Z177 -> 20 | K199: *( x - | M199: =+W185 -> 1 | O199: )- | P199: =+AE177 -> 20 | R199: *( x - | T199: =+W185+AB185 -> 3 | V199: )- | W199: =+AJ177 -> 20 | Y199: *( x - | AA199: =+W185+AB185+AG185 -> 5 | AC199: )- | AD199: =+AG178 -> 30 | AF199: * | AG199: x² | AH199: / | AI199: 2
C200: x= | D200: =+AE187/2 -> 3 | G200: m. ' deki moment ve kesme kuvveti miktarı | U200: =IF(D200<=AE187,"","azalt.") -> 
C201: Mx = | E201: =+E199 -> 120 | G201: * | H201: =+D200 -> 3 | J201: - | K201: =IF((N201-Q201)<=0,0,+I199) -> 20 | M201: *( | N201: =+H201 -> 3 | P201: - | Q201: =+M199 -> 1 | S201: )- | T201: =IF((W201-Z201)<=0,0,+P199) -> 0 | V201: *( | W201: =+N201 -> 3 | Y201: - | Z201: =+T199 -> 3 | AB201: )- | AC201: =IF((AF201-AI201)<=0,0,+W199) -> 0 | AE201: *( | AF201: =+W201 -> 3 | AH201: - | AI201: =+AA199 -> 5 | AK201: )- | AL201: =+AD199 -> 30 | AN201: * | AO201: =+AF201 -> 3 | AQ201: ²/ | AR201: 2 | AS201: = | AT201: =E201*H201-K201*(N201-Q201)-T201*(W201-Z201)-AC201*(AF201-AI201)-AL201*AO201^2/AR201 -> 185 | AW201: KNm
C202: Vx = | E202: =+E201 -> 120 | G202: - | H202: =+K201 -> 20 | J202: - | K202: =+T201 -> 0 | M202: - | N202: =+AC201 -> 0 | P202: - | Q202: =+AL201 -> 30 | S202: * | T202: =+AO201 -> 3 | V202: = | W202: =+E202-H202-K202-N202-Q202*T202 -> 10 | Z202: KN
C203: EĞİLME HESABINDA KULLANILMAK ÜZERE Cb KATSAYISI İÇİN ( Mmax ; MA ; MB ; MC ) HESABI (Çelik yönetmelik madde 9.1.(c) uyarınca)
... 1879 more rows
